Cogmind - Beta 13 @@@ ROGUE MODE // 2024.04.01 @ 11:12:59 Player: kitty Result: Destroyed by KI-SWH(R) with Subdweller Beam Cannon Performance ------------- Evolutions (0) 0 Regions Visited (3) 600 Robots Destroyed (22) 110 Value Destroyed (596) 596 Prototype IDs (2) 40 Alien Tech Used (0) 0 Bonus (25) 25 TOTAL SCORE: 1371 Bonus ------- Follower Combat Kills 25 Cogmind --------- Core Integrity 0/250 Matter 289/300 Energy 125/125 System Corruption 9% Temperature Cool (9) Movement Walking (120) Location -10/Subcaves Parts ------- > --- POWER (1) -------- Light Ion Engine > --- PROPULSION (2) --- Aluminum Leg Aluminum Leg > --- UTILITY (2) ------ Medium Storage Unit Signal Interpreter > --- WEAPON (2) ------- Heavy Particle Cannon > --- INVENTORY (10) --- Light Nuclear Core Aluminum Leg Aluminum Leg Aluminum Leg VSS Leg Reflective Plating Hacking Suite System Shield Rocket Launcher Datajack Peak State ------------ > --- POWER ------------ Light Ion Engine > --- PROPULSION ------- Aluminum Leg VSS Leg > --- UTILITY ---------- Medium Storage Unit Signal Interpreter > --- WEAPON ----------- Heavy Particle Cannon Rocket Launcher > --- INVENTORY -------- Light Nuclear Core Aluminum Leg Aluminum Leg Aluminum Leg Aluminum Leg Aluminum Leg Reflective Plating Hacking Suite System Shield Datajack [Rating: 13] Favorites ----------- Power Light Ion Engine Engine Light Ion Engine Propulsion Aluminum Leg Treads Light Treads Leg Aluminum Leg Wheel Compact Wheel Utility Medium Storage Unit Storage Medium Storage Unit Processor Signal Interpreter Weapon Assault Rifle Energy Gun EM Pulse Gun Energy Cannon Heavy Particle Cannon Ballistic Gun Assault Rifle Launcher Grenade Launcher Build | -11 -10 -10 -10 ------- Run | Yrd Mat Min Sub Slots Evolved . | . . . . Power . | . . . . Propulsion . | . . . . Utility . | . . . . Weapon . | . . . . Parts Attached 30 | 8 13 9 . Power 3 | 1 1 1 . Engine 3 | 1 1 1 . Core . | . . . . Reactor . | . . . . Propulsion 11 | 3 4 4 . Treads 2 | 2 . . . Leg 8 | . 4 4 . Wheel 1 | 1 . . . Hover . | . . . . Flight . | . . . . Utility 6 | 1 5 . . Device . | . . . . Storage 4 | 1 3 . . Processor 2 | . 2 . . Hackware . | . . . . Protection . | . . . . Artifact . | . . . . Weapon 10 | 3 3 4 . Energy Gun 2 | . 2 . . Energy Cannon 1 | . . 1 . Ballistic Gun 5 | 3 1 1 . Ballistic Cannon . | . . . . Launcher 2 | . . 2 . Special Weapon . | . . . . Impact Weapon . | . . . . Slashing Weapon . | . . . . Piercing Weapon . | . . . . Special Melee Weapon . | . . . . Unidentified Prototypes . | . . . . Parts Lost 2 | . . 2 . Power . | . . . . Propulsion . | . . . . Utility . | . . . . Weapon 2 | . . 2 . Highest Loss Streak 1 | . . 1 . To Critical Strikes . | . . . . Average Slot Usage (%) 92 | . 95 89 85 Engine 14 | . 14 14 14 Treads 4 | . 7 . . Leg 23 | . 20 28 28 Storage 14 | . 14 14 14 Processor 11 | . 9 14 14 Energy Gun 7 | . 11 . . Ballistic Gun 15 | . 16 12 . Launcher 1 | . . 3 . Naked Turns . | . . . . Heaviest Build 23 | 12 18 23 19 Greatest Support 40 | 40 40 20 20 Greatest Overweight (x) 1 | . . 1 . Average Overweight (x) . | . . . . Largest Inventory Capacity 25 | 8 25 10 10 Average Capacity 9 | 7 10 10 10 Most Carried 10 | 5 10 10 10 Average Carried 8 | 3 8 9 10 Final Capacity 10 | 8 10 10 10 Final Carried 10 | 5 9 10 10 Class Distribution -------------------- 100% | Mutant Dominant Class ---------------- Mutant | -10/Materials Mutant | -10/Mines Mutant | -10/Subcaves Resources | -11 -10 -10 -10 ----------- Run | Yrd Mat Min Sub Matter Collected 823 | 217 406 200 . Remotely . | . . . . Salvage Created 638 | . 580 58 . Parts 39 | . 32 7 . Haulers Intercepted . | . . . . Recyclers Shooed . | . . . . Parts Field Recycled . | . . . . Retrieved Matter . | . . . . Parts Self-Destructed . | . . . . Prevented . | . . . . Kills | -11 -10 -10 -10 ------- Run | Yrd Mat Min Sub Combat Hostiles Destroyed 18 | . 13 5 . Guns 14 | . 13 1 . AOE 4 | . . 4 . Classes Destroyed 4 | . 4 . . Worker 1 | . 1 . . Watcher 3 | . 3 . . Swarmer 6 | . 3 3 . Grunt 12 | . 10 2 . Best Kill Streak 6 | . 6 3 . Combat Bots Only 6 | . 6 3 . Max Kills in Single Turn 3 | . 2 3 . Gunslinging . | . . . . Exploded 3 | . . 3 . Melee . | . . . . Uniques/NPCs Destroyed . | . . . . Combat | -11 -10 -10 -10 -------- Run | Yrd Mat Min Sub Hostile Shots Fired 122 | . 87 30 5 Missed 32 | . 25 7 . Damage Taken 1065 | . 666 278 121 Core 258 | . 140 72 46 Absorbed by Shields . | . . . . Regen/Repaired (Parts) 22 | . 22 . . Core Remaining (%) 100 | 100 . . . Volleys Fired 72 | . 60 12 . Largest 2 | . 2 1 . Hottest 85 | . 85 75 . Shots Fired 116 | . 102 14 . Gun 104 | . 102 2 . Cannon 4 | . . 4 . Launcher 8 | . . 8 . Special . | . . . . Kinetic 64 | . 62 2 . Thermal 20 | . 16 4 . Explosive 8 | . . 8 . Electromagnetic 24 | . 24 . . Robot Hit Streak 15 | . 15 3 . Robot Miss Streak 4 | . 3 4 . Penetration Max . | . . . . Secondary Targets 2 | . 2 . . Max Gunslinging Chain 1 | . 1 . . Shots Hit Robots 74 | . 68 6 . Core Hits 33 | . 25 8 . Critical Kills . | . . . . Critical Parts Destroyed . | . . . . Critical Strikes 1 | . 1 . . Corrupt 1 | . 1 . . Melee Attacks . | . . . . Impact . | . . . . Slashing . | . . . . Piercing . | . . . . Sneak Attacks . | . . . . Combat Hostiles . | . . . . Follow-up Attacks . | . . . . Damage Inflicted 1373 | . 987 385 1 Guns 1006 | . 982 24 . Cannons 27 | . . 27 . Explosions 334 | . . 334 . Melee . | . . . . Ramming 6 | . 5 . 1 Kinetic 570 | . 546 24 . Thermal 189 | . 162 27 . Explosive 334 | . . 334 . Electromagnetic 274 | . 274 . . Impact . | . . . . Slashing . | . . . . Piercing . | . . . . Highest Corruption 9 | . 9 9 9 Average Corruption 7 | . 5 9 9 Corruption Purged . | . . . . Corruption Blocked . | . . . . Effects 61 | . 24 35 2 Message Errors 12 | . 5 7 . Matter Fused 12 | . 5 6 1 Heat Flow Errors 12 | . 3 9 . Energy Discharges 13 | . 7 5 1 Parts Fused 1 | . 1 . . Data Loss (minor) 3 | . . 3 . Data Loss (major) 2 | . . 2 . Misfires 4 | . 2 2 . Alerts 2 | . 1 1 . Overload Shots . | . . . . Overflow Damage 15 | . . 15 . Projectiles . | . . . . Explosions 15 | . . 15 . Melee . | . . . . Knockbacks . | . . . . Impact . | . . . . Kinetic . | . . . . Secondary . | . . . . Self-Inflicted Damage 32 | . . 32 . Shots 2 | . . 2 . Rammed 1 | . 1 . . Targets Rammed 2 | . 1 . 1 Kicked 1 | . . . 1 Crushed . | . . . . Highest Temperature 250 | . 225 250 . Average Temperature 77 | . 49 102 . Received Heat Transfer 447 | . 309 108 30 Siege Activations . | . . . . Robots Corrupted 1 | . 1 . . Combat Hostiles . | . . . . Parts Fried 1 | . 1 . . Impact Corruptions . | . . . . Robots Melted . | . . . . Combat Hostiles . | . . . . Parts Melted 1 | . 1 . . Heat Transferred 407 | . 370 37 . Parts Sabotaged . | . . . . Parts Stolen . | . . . . Parts Stripped . | . . . . Power Chain Reactions . | . . . . Alert | -11 -10 -10 -10 ------- Run | Yrd Mat Min Sub Peak Influence 257 | . 257 168 . Initial . | . . . . Average 66 | . 85 40 . Maximum Alert Level 1 | . 1 . . Low Security (%) 93 | 100 89 100 . Level 1 6 | . 10 . . Level 2 . | . . . . Level 3 . | . . . . Level 4 . | . . . . Level 5 . | . . . . High Security . | . . . . Max Security . | . . . . Squads Dispatched 3 | . 2 1 . Investigation 2 | . 1 1 . Extermination . | . . . . Reinforcement 1 | . 1 . . Assault . | . . . . Garrison . | . . . . Intercept . | . . . . Searches Triggered . | . . . . Construction Impeded . | . . . . Haulers Reinforced . | . . . . Active Scanning Responses . | . . . . Cargo Convoy Interrupts . | . . . . Stealth | -11 -10 -10 -10 --------- Run | Yrd Mat Min Sub Distress Signals 2 | . 2 . . Communications Jammed . | . . . . Distress Signals . | . . . . Times Spotted 39 | . 26 6 7 Peak Tracking Total 8 | . 8 3 6 Tactical Retreats . | . . . . Traps | -11 -10 -10 -10 ------- Run | Yrd Mat Min Sub Traps Triggered 5 | . 5 . . Indirectly . | . . . . Trap Hack Attempts . | . . . . Triggered . | . . . . Disarmed . | . . . . Reprogrammed . | . . . . Reused . | . . . . Traps Extracted . | . . . . Installed . | . . . . Triggered . | . . . . Machines | -11 -10 -10 -10 ---------- Run | Yrd Mat Min Sub Machines Disabled 4 | . 2 2 . Max in Single Turn 1 | . 1 1 . Machines Repaired . | . . . . Machines Dismantled . | . . . . Machines Sabotaged . | . . . . Overloaded Fab Kills . | . . . . Hacking | -11 -10 -10 -10 --------- Run | Yrd Mat Min Sub Machines Accessed 12 | . 11 1 . Terminals 8 | . 8 . . Fabricators . | . . . . Repair Stations 1 | . 1 . . Recycling Units 2 | . 2 . . Scanalyzers . | . . . . Garrison Access . | . . . . Total Hacks 40 | . 39 1 . Successful 25 | . 24 1 . Failed 15 | . 15 . . Catastrophic 1 | . 1 . . Database Lockouts . | . . . . Manual 1 | . 1 . . Terminals 28 | . 28 . . Fabricators . | . . . . Repair Stations 4 | . 4 . . Recycling Units 7 | . 7 . . Scanalyzers . | . . . . Garrison Access . | . . . . Terminal Hacks 17 | . 16 1 . Record 8 | . 8 . . Robot Analysis 1 | . 1 . . Prototype ID Bank 1 | . 1 . . Open Door 1 | . . 1 . Emergency Access Points 1 | . 1 . . Alert Level 2 | . 2 . . Dispatch Records 1 | . 1 . . Transport Status 1 | . 1 . . Zone Layout 1 | . 1 . . Fabricator Hacks . | . . . . Repair Station Hacks 3 | . 3 . . Scan Component 2 | . 2 . . Repair 1 | . 1 . . Recycling Unit Hacks 5 | . 5 . . Recycle Component 1 | . 1 . . Process 3 | . 3 . . Report Inventory 1 | . 1 . . Scanalyzer . | . . . . Garrison Access Hacks . | . . . . Unauthorized Hacks . | . . . . Terminals . | . . . . Fabricators . | . . . . Repair Stations . | . . . . Recycling Units . | . . . . Scanalyzers . | . . . . Garrison Access . | . . . . Data Cores Recovered . | . . . . Used . | . . . . Hacking Detections 6 | . 6 . . Full Trace Events 1 | . 1 . . Feedback Events . | . . . . Feedback Blocked . | . . . . Robot Schematics Acquired . | . . . . Robots Built . | . . . . Authchips . | . . . . Time . | . . . . Total Robot Build Rating . | . . . . Part Schematics Acquired . | . . . . Parts Built . | . . . . Authchips . | . . . . Time . | . . . . Total Part Build Rating . | . . . . Parts Repaired 1 | . 1 . . Time 53 | . 53 . . Parts Recycled 1 | . 1 . . Recycled Matter 181 | . 181 . . Retrieved Matter . | . . . . Retrieved Components . | . . . . Parts Scanalyzed . | . . . . Part Schematics Acquired . | . . . . Parts Damaged . | . . . . Bothacking | -11 -10 -10 -10 ------------ Run | Yrd Mat Min Sub Used RIF Installer . | . . . . Robots Hacked . | . . . . Non-combat . | . . . . Combat . | . . . . Robot Hacks Applied . | . . . . Relay Couplers Released . | . . . . Fabnet Peak Effective % . | . . . . Robots Rewired . | . . . . Allies Hacked . | . . . . Hacks Repelled . | . . . . Allies | -11 -10 -10 -10 -------- Run | Yrd Mat Min Sub Total Allies 5 | . . 5 . Largest Group 5 | . . 5 5 Highest-Rated Group 81 | . . 81 81 Highest-Rated Ally 31 | . . 31 31 Total Orders . | . . . . Ally Attacks 16 | . . 4 12 Total Damage 179 | . . 59 120 Kills 1 | . . 1 . Allies Corrupted . | . . . . Allies Melted . | . . . . Intel | -11 -10 -10 -10 ------- Run | Yrd Mat Min Sub Robot Analysis Total 1 | . 1 . . Derelict Logs Recovered 2 | . . 2 . Drone Launches . | . . . . Drone Recoveries . | . . . . Exploration | -11 -10 -10 -10 ------------- Run | Yrd Mat Min Sub Turns Passed 3351 | 166 2056 1042 87 Spaces Moved 2150 | 97 1228 754 71 Core 1 | 1 . . . Treads 263 | 91 172 . . Legs 1881 | . 1056 754 71 Wheels 5 | 5 . . . Hover . | . . . . Flight . | . . . . Fastest Speed 50 | 50 120 120 120 Average Speed 124 | 155 125 120 120 Slowest Speed 190 | 160 160 190 120 Overloaded Moves . | . . . . Propulsion Burnouts . | . . . . Robots Hopped . | . . . . Cave-ins Triggered . | . . . . Exploration Rate (%) 54 | 7 99 101 11 Regions Visited 3 Branch Regions 2 Pre-discovered Areas . | . . . . Known Exits Taken 2 | . 1 1 . Unknown Exits Taken 1 | 1 . . . Scrap Searched 1 | . . 1 . Spaces Dug . | . . . . Terrain Destroyed 56 | . . 56 . Melee . | . . . . Projectile 3 | . . 3 . AOE 53 | . . 53 . Terrain Rammed . | . . . . Walls Destroyed . | . . . . Machines Disabled . | . . . . Actions | -11 -10 -10 -10 --------- Run | Yrd Mat Min Sub Total 2702 | 109 1643 877 73 Wait 402 | . 310 91 1 Move 2147 | 96 1227 753 71 Hop . | . . . . Pick Up 26 | 3 17 6 . Fast Attach 12 | 8 3 1 . Attach 3 | . 1 2 . Detach 5 | 2 2 1 . Swap 15 | . 9 6 . Drop 18 | . 13 5 . Fire 72 | . 60 12 . Melee . | . . . . Ram . | . . . . Kick 1 | . . . 1 Crush 1 | . 1 . . Escape Stasis . | . . . . Rewire . | . . . . Trap . | . . . . Miscellaneous . | . . . . Route ------- -11/Scrapyard -10/Materials (discovered 5 exits: *Mat x3 / *Min x2) -10/Mines (discovered 3 exits: *Mat x2 / *Sub) -10/Subcaves History --------- Turn | Location | Event 7 | -11/Scrapyard | Discovered new exit (range 16) 167 | -11/Scrapyard | Entered Materials 318 | -10/Materials | Build established: Mutant 650 | -10/Materials | Repaired Broken Lgt. Nuclear Core 707 | -10/Materials | Core integrity fell below 50% 887 | -10/Materials | Discovered new exit (range 18) 1062 | -10/Materials | Discovered new exit (range 11) 1295 | -10/Materials | Discovered new exit (range 11) 1539 | -10/Materials | Discovered new exit (range 16) 1589 | -10/Materials | Discovered new exit (range 9) 1710 | -10/Materials | Identified exit to Mines 1748 | -10/Materials | Identified exit to Materials 2223 | -10/Materials | Entered Mines 2278 | -10/Mines | Learned Materials terminal intel 2308 | -10/Mines | Discovered exit to Materials (range 16) 2463 | -10/Mines | Received a Rocket Launcher from a helpful Derelict 2676 | -10/Mines | Discovered exit to Materials (range 5) 2724 | -10/Mines | Assisted by bots powering up and referring to "LRC-V3" 2772 | -10/Mines | Learned Materials emergency access door positions 2938 | -10/Mines | Discovered new exit (range 6) 3145 | -10/Mines | Met a Derelict shopkeep closing up shop 3238 | -10/Mines | Core integrity fell below 20% 3264 | -10/Mines | Identified exit to Subcaves 3265 | -10/Mines | Entered Subcaves 3265 | -10/Subcaves | Accompanied by 5 allies 3270 | -10/Subcaves | Led the pair of lost Derelicts to an unsafe place 3345 | -10/Subcaves | Ambushed by swarm of Subdwellers 3352 | -10/Subcaves | Destroyed by KI-SWH(R) with Subdweller Beam Cannon Last Messages --------------- 03270_ R2-Z9E(g): "This place looks worse than where we left..." 03275_ R2-Z9E(g): "Following you was a bad idea, I think." 03313_ System corrupted: Energy discharge (-28). A mess of Twisted Machinery falls from the cavern ceiling. WH-5UU(R) comes tumbling into view. 03345_ DE-HS0(h): "The Subs are coming!" 03345_ HV Slug penetrates Mercenary 1a. 03345_ Mercenary 1a suffers critical hit (Destroy). 03345_ Mercenary 1a knocked back. 03347_ ST-MTE(R) emerges from the Twisted Machinery. 03348_ V1-BBF(R) emerges from the Twisted Machinery. 03348_ KI-SWH(R) emerges from the Twisted Machinery. 03348_ 57-VTZ(R) emerges from the Twisted Machinery. 03348_ WH-5UU(R) suffers critical hit (Destroy). 03348_ WH-5UU(R) destroyed. 03350_ 0N-FNU(R) emerges from the Twisted Machinery. 03351_ VK-9SO(R) emerges from the Twisted Machinery. 03351_ HV Slug penetrates Wall. 03352_ Subatomizers dissect the Sub. Monowheel. 03352_ Kicked 57-VTZ(R) out of the way. Map ----- +----------------------------------------------------+ | ???????????????????## #??????# #???????????????? | | ???????????????????# #????## #???????????????? | | ????????????????????# ##### #???????????????? | | ??????????????? ????# #???????????????? | | ??????????????? ??# ##???????????????? | | ?????????????? ## ##????????????????? | | ?????????????? ##????????????????? | | ???????????????# #????????????????? | | ???????????????## #????????????????? | | ????????????????# ## #????????????????? | | ??????????????? ??#### #????????????????? | | ???????????????? ? ?????## #????????????????? | | ????????????????????????# ##???????????????? | | ????????????????????????# #???????????????? | | ???????????????????????## h ### #?????????? | | ???????????????????????# gg #?????????? | | ???????????????????????# g% ## ??????? | | ???????????????????????## g ## ## ???????? | | ???????????????????????## ## ##??? ????????? | | ???????????????????????# ####?????????????? | | ??????????????????????## ### #???????? | | ??????????????????????# #????????? | | ?????????????????????## #????????? | | ?????????????????????# [R ## #???????? | | ?????????????????????# !&R;##? ####???????? | | ?????????????????????####@R##?? #??????????? | | ???????????????????????#;R""#??? ?????????? | | ???????????????????????## R##??? #????????? | | ????????????????????????# #????? # ?????????? | | ???????????????????????? R#?????? ##? ?????????? | | ???????????????????????? ?????????????????????? | | ???????????????????????? #?????????????????????? | | ???????????????????????#####?????????????????????? | | ?????????????????????????????????????????????????? | | ?????????????????????????????????????????????????? | | ?????????????????????????????????????????????????? | | ?????????????????????????????????????????????????? | | ?????????????????????????????????????????????????? | | ?????????????????????????????????????????????????? | | ?????????????????????????????????????????????????? | | ?????????????????????????????????????????????????? | | ?????????????????????????????????????????????????? | | ?????????????????????????????????????????????????? | | ?????????????????????????????????????????????????? | | ?????????????????????????????????????????????????? | | ?????????????????????????????????????????????????? | | ?????????????????????????????????????????????????? | | ?????????????????????????????????????????????????? | | ?????????????????????????????????????????????????? | | ?????????????????????????????????????????????????? | +----------------------------------------------------+ Best States ------------- Heat Dissipation 25 Energy Generation 10 Energy Capacity 125 Matter Stores 300 Matter Capacity 300 Sight Range 18 Terrain Scan Density 10 Evasion (%) 55 Recoil Reduction 2 Item Schematics ----------------- None Robot Schematics ------------------ None Fabricated ------------ Nothing Alien Tech Used ----------------- None Achievements -------------- Crack Shot Power Corrupts Challenges ------------ None Game ------ Seed CombatMediumMace Manual? 0 Play Time 00:39:55 Cumulative 2.2 hours Start 2024.03.31 @ 12:57:49 End 2024.04.01 @ 11:12:59 Sessions 3 Manual Loads 0 Difficulty Rogue Special Mode None Game No. 2 Rogue 2 Adventurer 0 Explorer 0 Win Type - Total 0 Types 0/0/0/0/0/0/0/0/0 Lore% 4 Gallery% 3 Achievement% 5 Wizard Run 0 Options --------- Layout 0 ASCII 0 Keyboard 1 Movement Vi Keybinds 0 Fullscreen 1 Font 18/Terminus Map View 76x50 Zoom Use 0% Tactical HUD 1 Map Filters NONE Filters NONE Steam 1 RUN: 31e51a91-3efe-4174-a2e3-d85478cfa22e